fUSD/lending_fUSD_20241024
["ID","MTS","AMOUNT","RATE_DAILY","PERIOD"]
[340736108,1729752643493,-1000.0,0.000658,30]
[340736109,1729752643502,-220.26108226,0.000658,15]
[340736110,1729752643512,-313.21704352,0.000658,2]
[340736112,1729752643522,-233.42488288,0.000658,37]
[340736114,1729752643532,-273.903,0.00065806,120]
[340736116,1729752643542,-250.0,0.00065806,120]
[340736118,1729752643552,-1017.52695747,0.0006589,15]
[340736120,1729752643564,-2519.36597863,0.0006589,15]
[340736122,1729752643576,-4477.96596003,0.0006589,15]
[340736123,1729752643588,-2602.19999985,0.0006589,15]
[340736124,1729752643599,-8460.57945645,0.0006589,15]
[340736125,1729752643615,-2151.55353911,0.0006589,15]
[340736129,1729752646108,-356.34,0.0006589,15]
[340736130,1729752646121,-341.44,0.0006589,15]
[340736131,1729752646141,-6222.99803238,0.0006589,15]
[340736132,1729752646153,-32719.61999997,0.0006589,15]
[340736133,1729752646276,-9974.60786961,0.0006589,15]
[340736134,1729752646286,-250.33354505,0.00065899,31]
[340736135,1729752646296,-175.23348153,0.00065899,31]
[340736136,1729752646306,-4160.77,0.00065899,120]
[340736137,1729752646316,-500.0,0.00065899,120]
[340736138,1729752646326,-500.0,0.00065899,120]
[340736139,1729752646335,-516.29193247,0.00065899,120]
[340736140,1729752646345,-2011.59,0.00065899,120]
[340736141,1729752646354,-707.15,0.00065899,120]
[340736142,1729752646364,-707.15,0.00065899,120]
[340736143,1729752646373,-500.0,0.00065899,120]
[340736144,1729752646382,-500.0,0.00065899,120]
[340736145,1729752646392,-500.0,0.00065899,120]
[340736146,1729752646401,-245000.0,0.000659,2]
[340736147,1729752646411,-733.9637,0.000659,2]
[340736148,1729752646420,-37684.0534,0.000659,2]
[340736149,1729752646430,-83633.0023,0.000659,2]
[340736150,1729752646439,-7500.0,0.000659,120]
[340736151,1729752646448,-176.61969688,0.000659,2]
[340736152,1729752646458,-1063.24018186,0.000659,2]
[340736153,1729752646467,-477.79429582,0.000659,30]
[340736155,1729752646478,-185.99494251,0.000659,2]
[340736157,1729752646487,-8855.52472419,0.00065979,15]
[340736159,1729752646496,-500.0,0.0006598,120]
[340736161,1729752646505,-474.7066,0.0006598,120]
[340736163,1729752646515,-2011.59,0.0006598,120]
[340736165,1729752646524,-166.00297471,0.0006598,120]
[340736167,1729752646533,-53133.1483451,0.00065989,15]
[340736169,1729752646543,-500.0,0.00065989,120]
[340736171,1729752646552,-500.0,0.00065989,120]
[340736173,1729752646561,-621.56242953,0.00065989,120]
[340736175,1729752646571,-4160.77,0.00065989,120]
[340736177,1729752646580,-500.0,0.00065989,120]
[340736179,1729752646589,-500.0,0.00065989,120]
[340736181,1729752646598,-500.0,0.00065989,120]
[340736182,1729752646608,-500.0,0.00065989,120]
[340736183,1729752646617,-500.0,0.00065989,120]
[340736184,1729752646625,-500.0,0.00065989,120]
[340736185,1729752646635,-500.0,0.00065989,120]
[340736186,1729752646644,-500.0,0.00065989,120]
[340736187,1729752646654,-500.0,0.00065989,120]
[340736188,1729752646663,-500.0,0.00065989,120]
[340736189,1729752646672,-500.0,0.00065989,120]
[340736190,1729752646682,-500.0,0.00065989,120]
[340736191,1729752646691,-500.0,0.00065989,120]
[340736192,1729752646700,-500.0,0.00065989,120]
[340736193,1729752646709,-500.0,0.00065989,120]
[340736194,1729752646718,-44277.6236209,0.0006599,15]
[340736195,1729752646727,-53133.1483451,0.0006599,15]
[340736196,1729752646736,-707.15,0.00065998,120]
[340736197,1729752646745,-500.0,0.00065998,120]
[340736198,1729752646754,-500.0,0.00065999,120]
[340736199,1729752646763,-500.0,0.00065999,120]
[340736200,1729752646772,-500.0,0.00065999,120]
[340736201,1729752646782,-500.0,0.00065999,120]
[340736202,1729752646791,-478.14979822,0.00065999,120]
[340736203,1729752646800,-4160.77,0.00065999,120]
[340736204,1729752646809,-4160.77,0.00065999,120]
[340736205,1729752646818,-4160.77,0.00065999,120]
[340736206,1729752646827,-4160.77,0.00065999,120]
[340736207,1729752646836,-4160.77,0.00065999,120]
[340736208,1729752646846,-4160.77,0.00065999,120]
[340736209,1729752646855,-4160.77,0.00065999,120]
[340736210,1729752646864,-4160.77,0.00065999,120]
[340736211,1729752646874,-4160.77,0.00065999,120]
[340736212,1729752646883,-4160.77,0.00065999,120]
[340736213,1729752646894,-4160.77,0.00065999,120]
[340736214,1729752646904,-4160.77,0.00065999,120]
[340736215,1729752646913,-500.0,0.00065999,120]
[340736216,1729752646923,-500.0,0.00065999,120]
[340736217,1729752646932,-500.0,0.00065999,120]
[340736218,1729752646941,-500.0,0.00065999,120]
[340736219,1729752646951,-500.0,0.00065999,120]
[340736220,1729752646961,-500.0,0.00065999,120]
[340736221,1729752646971,-500.0,0.00065999,120]
[340736222,1729752646981,-500.0,0.00065999,120]
[340736223,1729752646991,-500.0,0.00065999,120]
[340736224,1729752647002,-500.0,0.00065999,120]
[340736225,1729752647011,-500.0,0.00065999,120]
[340736226,1729752647021,-422.84801715,0.00065999,120]
[340736227,1729752647031,-500.0,0.00065999,120]
[340736228,1729752647040,-500.0,0.00065999,120]
[340736229,1729752647050,-500.0,0.00065999,120]
[340736230,1729752647059,-500.0,0.00065999,120]
[340736231,1729752647069,-500.0,0.00065999,120]
[340736232,1729752647079,-500.0,0.00065999,120]
[340736233,1729752647088,-500.0,0.00065999,120]
[340736234,1729752647098,-500.0,0.00065999,120]
[340736235,1729752647107,-500.0,0.00065999,120]
[340736236,1729752647116,-500.0,0.00065999,120]
[340736237,1729752647127,-500.0,0.00065999,120]
[340736238,1729752647136,-500.0,0.00065999,120]
[340736239,1729752647145,-500.0,0.00065999,120]
[340736240,1729752647154,-500.0,0.00065999,120]
[340736241,1729752647165,-500.0,0.00065999,120]
[340736242,1729752647174,-500.0,0.00065999,120]
[340736243,1729752647184,-500.0,0.00065999,120]
[340736244,1729752647193,-500.0,0.00065999,120]
[340736245,1729752647203,-500.0,0.00065999,120]
[340736246,1729752647212,-500.0,0.00065999,120]
[340736247,1729752647221,-500.0,0.00065999,120]
[340736248,1729752647231,-500.0,0.00065999,120]
[340736249,1729752647241,-523.99745721,0.00065999,120]
[340736250,1729752647250,-500.0,0.00065999,120]
[340736251,1729752647260,-500.0,0.00065999,120]
[340736252,1729752647269,-500.0,0.00065999,120]
[340736253,1729752647278,-500.0,0.00065999,120]
[340736254,1729752647287,-500.0,0.00065999,120]
[340736255,1729752647296,-500.0,0.00065999,120]
[340736256,1729752647306,-500.0,0.00065999,120]
[340736257,1729752647315,-500.0,0.00065999,120]
[340736258,1729752647324,-500.0,0.00065999,120]
[340736259,1729752647335,-286.66348,0.00065999,120]
[340736260,1729752647344,-497.01807829,0.00065999,120]
[340736261,1729752647354,-500.0,0.00065999,120]
[340736262,1729752647363,-500.0,0.00065999,120]
[340736263,1729752647373,-507.55533428,0.00065999,120]
[340736264,1729752647382,-459.94099184,0.00065999,120]
[340736265,1729752647391,-2011.59,0.00065999,120]
[340736266,1729752647401,-2011.59,0.00065999,120]
[340736267,1729752647410,-2011.59,0.00065999,120]
[340736268,1729752647419,-2011.59,0.00065999,120]
[340736269,1729752647429,-2011.59,0.00065999,120]
[340736270,1729752647439,-2011.59,0.00065999,120]
[340736271,1729752647448,-2011.59,0.00065999,120]
[340736272,1729752647458,-2011.59,0.00065999,120]
[340736273,1729752647467,-2011.59,0.00065999,120]
[340736274,1729752647477,-2011.59,0.00065999,120]
[340736275,1729752647487,-2011.59,0.00065999,120]
[340736276,1729752647496,-2011.59,0.00065999,120]
[340736277,1729752647505,-707.15,0.00065999,120]
[340736278,1729752647515,-707.15,0.00065999,120]
[340736279,1729752647524,-707.15,0.00065999,120]
[340736280,1729752647534,-707.15,0.00065999,120]
[340736281,1729752647544,-707.15,0.00065999,120]
[340736282,1729752647554,-707.15,0.00065999,120]
[340736283,1729752647563,-707.15,0.00065999,120]
[340736284,1729752647573,-707.15,0.00065999,120]
[340736285,1729752647583,-707.15,0.00065999,120]
[340736286,1729752647592,-707.15,0.00065999,120]
[340736287,1729752647602,-707.15,0.00065999,120]
[340736288,1729752647611,-500.0,0.00065999,120]
[340736289,1729752647621,-500.0,0.00065999,120]
[340736290,1729752647631,-500.0,0.00065999,120]
[340736291,1729752647640,-500.0,0.00065999,120]
[340736292,1729752647649,-500.0,0.00065999,120]
[340736293,1729752647658,-500.0,0.00065999,120]
[340736294,1729752647667,-488.503,0.00065999,120]
[340736295,1729752647677,-500.0,0.00065999,120]
[340736296,1729752647687,-500.0,0.00065999,120]
[340736297,1729752647696,-500.0,0.00065999,120]
[340736298,1729752647705,-500.0,0.00065999,120]
[340736299,1729752647714,-500.0,0.00065999,120]
[340736300,1729752647723,-500.0,0.00065999,120]
[340736301,1729752647733,-500.0,0.00065999,120]
[340736302,1729752647742,-500.0,0.00065999,120]
[340736303,1729752647751,-500.0,0.00065999,120]
[340736304,1729752647761,-492.26174001,0.00065999,120]
[340736305,1729752647770,-81768.20451845,0.00066,62]
[340736306,1729752647780,-1517413.5025648,0.00066,120]
[340736307,1729752647793,-7912.29273914,0.00066,120]
[340736308,1729752647804,-398.22878381,0.00066,120]
[340736309,1729752721882,300.0,0.00019725,2]
[340736311,1729752779959,160.14,0.00015342,2]
[340736317,1729752902141,250.0,0.0001,2]
[340736318,1729752905922,300.0,0.00012,2]
[340736320,1729752912350,350.0,0.00014,2]
[340736321,1729752915866,400.0,0.00016,2]
[340736363,1729753288702,169.6,0.00015342,2]
[340736390,1729753502292,40047.20405399,0.00024,60]
[340736396,1729753546165,-425.91205218,0.00057541,12]
[340736397,1729753548108,-1190.09432422,0.00057541,12]
[340736410,1729753645100,-187.651584,0.00057541,12]
[340736411,1729753645121,-765.35508362,0.0005783,120]
[340736428,1729753832341,-4091.10252054,0.0005998,120]
[340736429,1729753832351,-2000.0,0.0006,120]
[340736430,1729753832360,-316.44,0.00062626,2]
[340736431,1729753832370,-2077.0,0.00063207,30]
[340736432,1729753832379,-3954.04,0.000638,120]
[340736433,1729753832389,-153.02,0.00064245,30]
[340736434,1729753832398,-23900.0,0.00064261,2]
[340736435,1729753832408,-640.0,0.00064365,120]
[340736436,1729753832417,-250.0,0.00064403,120]
[340736437,1729753832427,-250.0,0.00064652,120]
[340736438,1729753832438,-360.0,0.00064844,120]
[340736439,1729753832447,-1500.0,0.0006486,120]
[340736440,1729753832456,-150.0,0.00064869,12]
[340736441,1729753832466,-1500.0,0.0006487,120]
[340736442,1729753832476,-1500.0,0.0006488,120]
[340736443,1729753832485,-316.44,0.0006489,2]
[340736444,1729753832495,-2000.0,0.00065,120]
[340736445,1729753832504,-150.0,0.00065,120]
[340736446,1729753832513,-299.09,0.00065,120]
[340736447,1729753832523,-219.123,0.00065,120]
[340736448,1729753832533,-406.35716815,0.0006569,120]
[340736449,1729753832542,-358.88100544,0.00065699,120]
[340736450,1729753832551,-4843.3895,0.000657,2]
[340736451,1729753832560,-554.1069,0.000657,2]
[340736452,1729753832569,-214.4669,0.000657,2]
[340736453,1729753832578,-217.86322404,0.000657,37]
[340736454,1729753832587,-313.21704352,0.000657,2]
[340736455,1729753832596,-240.32402485,0.000657,28]
[340736456,1729753832606,-3188.68491538,0.00065783,120]
[340736457,1729753832615,-8510.73930301,0.00065787,120]
[340736458,1729753832625,-13592.15750119,0.0006579,15]
[340736459,1729753832636,-6779.17413236,0.0006579,15]
[340736460,1729753832648,-5635.91092759,0.0006579,15]
[340736461,1729753832659,-1482.68010648,0.0006579,15]
[340736462,1729753832670,-2003.00884502,0.0006579,15]
[340736463,1729753832682,-900.0,0.0006579,15]
[340736464,1729753832696,-2930.75050589,0.0006579,15]
[340736465,1729753835394,160.15,0.00015342,2]
[340736467,1729753838463,-1150.61,0.0006579,15]
[340736468,1729753838592,-560.50565751,0.0006579,15]
[340736508,1729753840386,-681.26488617,0.0006579,15]
[340736509,1729753840398,-253.44497898,0.0006579,15]
[340736510,1729753840409,-556.86577081,0.0006579,15]
[340736511,1729753840420,-52235.7261518,0.0006579,15]
[340736512,1729753840430,-7343.11806998,0.0006579,2]
[340736513,1729753840443,-639.92034794,0.0006579,2]
[340736514,1729753840454,-3415.23838208,0.0006579,2]
[340736515,1729753840463,-3431.2352,0.0006579,2]
[340736516,1729753840474,-15848.76735406,0.00065797,120]
[340736517,1729753840483,-838.16,0.00065799,120]
[340736518,1729753840492,-838.16,0.00065799,120]
[340736519,1729753840501,-500.0,0.00065799,120]
[340736520,1729753840510,-500.0,0.00065799,120]
[340736521,1729753840520,-1000.0,0.00065799,120]
[340736522,1729753840529,-1000.0,0.00065799,120]
[340736523,1729753840538,-418.90998928,0.00065799,120]
[340736524,1729753840550,-212.27001072,0.00065799,120]
[340736525,1729753840559,-631.18,0.00065799,120]
[340736526,1729753840568,-500.0,0.00065799,120]
[340736527,1729753840577,-500.0,0.00065799,120]
[340736528,1729753840587,-500.0,0.00065799,120]
[340736529,1729753840596,-3542.09174894,0.000658,2]
[340736530,1729753840607,-4925.52846422,0.000658,2]
[340736531,1729753840618,-4434.2302885,0.000658,2]
[340736532,1729753840629,-529.95,0.000658,2]
[340736533,1729753840694,-5810.15075387,0.000658,2]
[340736534,1729753840707,-1372.98,0.000658,2]
[340736535,1729753840719,-1866.22500004,0.000658,2]
[340736536,1729753840730,-126481.30690273,0.000658,2]
[340736537,1729753840741,-4824.55968735,0.000658,2]
[340736538,1729753840752,-961.27203814,0.000658,2]
[340736540,1729753840763,-1730.84596,0.000658,2]
[340736542,1729753840775,-6315.3454475,0.000658,2]
[340736544,1729753840786,-622.3913,0.000658,2]
[340736546,1729753840797,-1025.24744927,0.000658,2]
[340736548,1729753840808,-80557.87495944,0.000658,2]
[340736550,1729753840817,-37684.0534,0.000658,2]
[340736552,1729753840827,-100000.0,0.000658,2]
[340736554,1729753840837,-500.0,0.000658,2]
[340736556,1729753840846,-1000.0,0.000658,30]
[340736558,1729753840856,-500.0,0.00065899,120]
[340736560,1729753840865,-500.0,0.00065899,120]
[340736561,1729753840874,-500.0,0.00065899,120]
[340736563,1729753840883,-500.0,0.00065899,120]
[340736565,1729753840892,-500.0,0.00065899,120]
[340736566,1729753840901,-500.0,0.00065899,120]
[340736567,1729753840912,-119.28052873,0.000659,120]
[340736568,1729753840923,-3274.40791948,0.000659,120]
[340736569,1729753840935,-1010.205,0.000659,120]
[340736570,1729753840946,-3096.10655179,0.000659,120]
[340736571,1729753840955,-2277.48663625,0.0006596,120]
[340736572,1729753840970,-1439.07083368,0.0006596,120]
[340736573,1729753840981,-237.48252907,0.0006596,120]
[340736574,1729753840990,-26628.6298391,0.0006598,15]
[340736575,1729753841000,-17752.4198928,0.00065989,15]
[340736576,1729753841009,-500.0,0.00065989,120]
[340736577,1729753841019,-500.0,0.00065989,120]
[340736578,1729753841028,-37075.46579641,0.0006599,15]
[340736579,1729753843375,-6040.0,0.0006599,15]
[340736580,1729753843513,-627.59413878,0.0006599,15]
[340736581,1729753843562,-469.49824862,0.0006599,15]
[340736582,1729753843574,-778.84,0.0006599,15]
[340736583,1729753843610,-628.6711612,0.0006599,15]
[340736584,1729753843622,-1968.40098272,0.0006599,15]
[340736585,1729753843634,-531.44000001,0.0006599,15]
[340736586,1729753843646,-1422.7253338,0.0006599,15]
[340736587,1729753843657,-9604.38810319,0.0006599,15]
[340736592,1729753846218,-3954.04,0.000649,120]
[340736593,1729753846229,-26024.58434619,0.0006599,15]
[340736594,1729753846240,-279.45979728,0.0006599,15]
[340736595,1729753846325,-1527.62540399,0.0006599,15]
[340736596,1729753846353,-3559.24818399,0.0006599,15]
[340736597,1729753846364,-744.93,0.0006599,15]
[340736598,1729753846461,-3161.19814397,0.0006599,15]
[340736599,1729753846574,-3194.23977005,0.0006599,15]
[340736600,1729753846583,-4917.41128825,0.0006599,13]
[340736601,1729753855926,150.0,0.0001726,2]
[340736616,1729754100354,150.0,0.0001726,2]
[340736660,1729754454191,164.45,0.00015342,2]
[340736695,1729754729790,150.0,0.000101,2]
[340736696,1729754729814,150.0,0.000101,2]
[340736697,1729754729834,150.0,0.000101,2]
[340736698,1729754729855,150.0,0.000101,2]
[340736699,1729754729876,150.0,0.000101,2]
[340736700,1729754729898,150.0,0.000101,2]
[340736701,1729754729918,150.0,0.000101,2]
[340736702,1729754729939,150.0,0.000101,2]
[340736703,1729754729959,150.0,0.000101,2]
[340736704,1729754729979,150.0,0.000101,2]
[340736705,1729754729999,150.0,0.000101,2]
[340736706,1729754730020,150.0,0.000101,2]
[340736707,1729754730042,150.0,0.000101,2]
[340736708,1729754730062,150.0,0.000101,2]
[340736709,1729754730083,150.0,0.000101,2]
[340736710,1729754730103,150.0,0.000101,2]
[340736711,1729754730123,150.0,0.000101,2]
[340736712,1729754730142,150.0,0.000101,2]
[340736713,1729754730161,150.0,0.000101,2]
[340736714,1729754730319,150.0,0.000101,2]
[340736715,1729754730341,150.0,0.000101,2]
[340736716,1729754730363,150.0,0.000101,2]
[340736717,1729754730383,150.0,0.000101,2]
[340736718,1729754730406,299.0,0.000101,2]
[340736719,1729754730428,5810.03,0.000101,2]
[340736720,1729754730448,39035.64438653,0.000101,2]
[340736724,1729754754731,22834.3840687,6.94e-05,2]
[340736728,1729754780037,250.0,0.0001,2]
[340736730,1729754786887,300.0,0.00012,2]
[340736733,1729754807342,350.0,0.00014,2]
[340736739,1729754842144,-311.0,0.000343,2]
[340736740,1729754842166,-164.45,0.00039671,2]
[340736741,1729754842186,-173.40798076,0.000554,2]
[340736742,1729754842205,-375.55979298,0.000555,12]
[340736748,1729754880792,150.0,0.00015,2]
[340736749,1729754880817,150.0,0.00015,2]
[340736750,1729754880838,150.0,0.00015,2]
[340736751,1729754880862,150.0,0.00015,2]
[340736752,1729754880882,23929.87936401,0.00015,2]
[340736773,1729755002910,150.0,0.00015,2]
[340736774,1729755003103,150.0,0.00015,2]
[340736775,1729755003297,150.0,0.00015,2]
[340736776,1729755003517,150.0,0.00015,2]
[340736777,1729755003859,150.0,0.00015,2]
[340736778,1729755003900,150.0,0.00015,2]
[340736779,1729755004135,150.0,0.00015,2]
[340736780,1729755004313,150.0,0.00015,2]
[340736781,1729755004509,150.0,0.00015,2]
[340736782,1729755004765,150.0,0.00015,2]
[340736783,1729755004966,150.0,0.00015,2]
[340736785,1729755005189,170.71466594,0.00015,2]
[340736798,1729755031440,-427.0,0.000353,2]
[340736799,1729755031449,-5937.14751362,0.00041803,2]
[340736800,1729755031463,-2592.07786084,0.00041803,2]
[340736801,1729755031481,-2342.69282193,0.00041803,2]
[340736803,1729755031490,-2647.31836798,0.000551,120]
[340736804,1729755031501,-422.64168804,0.000551,120]
[340736806,1729755031511,-1863.15207544,0.000551,120]
[340736808,1729755031523,-497.0,0.000551,120]
[340736810,1729755031631,-2108.0908874,0.000551,120]
[340736811,1729755031643,-1148.82548988,0.000551,120]
[340736812,1729755031665,-838.4778,0.000551,120]
[340736817,1729755037709,-1558.85832548,0.000551,120]
[340736818,1729755037721,-439.63536578,0.000551,120]
[340736819,1729755037730,-2133.0,0.000555,12]
[340736820,1729755037739,-244.0,0.000555,120]
[340736821,1729755037749,-244.0,0.000555,120]
[340736822,1729755037758,-244.0,0.000555,120]
[340736823,1729755037768,-244.0,0.000555,120]
[340736824,1729755037778,-244.0,0.000555,120]
[340736825,1729755037787,-244.0,0.000555,120]
[340736826,1729755037796,-244.0,0.000555,120]
[340736827,1729755037805,-244.0,0.000555,120]
[340736828,1729755037815,-244.0,0.000555,120]
[340736829,1729755037824,-244.0,0.000555,120]
[340736830,1729755037833,-244.0,0.000555,120]
[340736831,1729755037842,-246.75050589,0.000555,120]
[340736832,1729755037852,-813.0,0.0005795,120]
[340736833,1729755037861,-536.26,0.00058035,2]
[340736834,1729755037870,-1706.77382452,0.0006,101]
[340736835,1729755037879,-352.0,0.00060755,2]
[340736836,1729755037888,-213.74,0.00062564,30]
[340736837,1729755037897,-4078.64030382,0.00062635,2]
[340736838,1729755037908,-19821.35969618,0.00062635,2]
[340736839,1729755037917,-239.75,0.00062838,2]
[340736840,1729755037928,-1838.22,0.00062875,2]
[340736841,1729755037939,-1000.0,0.00062907,120]
[340736842,1729755037948,-151.43,0.0006292,2]
[340736843,1729755037957,-150.0,0.00062942,2]
[340736844,1729755037966,-428.25,0.00062948,2]
[340736845,1729755037976,-250.0,0.00062969,120]
[340736846,1729755037985,-449.0,0.00063016,63]
[340736847,1729755037994,-352.0,0.00063019,2]
[340736848,1729755038004,-592.71,0.00063047,2]
[340736849,1729755038014,-1051.8,0.00063091,2]
[340736850,1729755038023,-231.49,0.00063153,120]
[340736851,1729755038032,-206.598,0.000634,120]
[340736852,1729755038041,-250.0,0.00063581,120]
[340736853,1729755038051,-200.0,0.00063686,2]
[340736855,1729755038060,-162.08,0.00063767,120]
[340736857,1729755038070,-3954.04,0.0006383,120]
[340736859,1729755038079,-790.91574852,0.0006384,2]
[340736887,1729755038332,-2075.1,0.0006384,2]
[340736889,1729755038343,-1150.61,0.0006384,2]
[340736892,1729755038358,-5315.16425148,0.0006384,2]
[340736894,1729755038367,-164.45,0.00064,120]
[340736896,1729755038377,-278.48,0.00064298,2]
[340736898,1729755038388,-3879.8679602,0.000643,120]
[340736900,1729755038399,-74.1720398,0.000643,120]
[340736902,1729755038409,-161.77,0.00064387,120]
[340736904,1729755038420,-879.91547498,0.00065,120]
[340736961,1729755039578,-6637.42016767,0.00065,120]
[340736962,1729755039588,-286.13281271,0.00065283,2]
[340736963,1729755039799,-65.86718729,0.00065283,2]
[340736964,1729755039809,-3954.039999,0.000653,120]
[340736965,1729755039818,-1000.0,0.00065597,2]
[340736966,1729755039828,-253.17725508,0.00065597,15]
[340736967,1729755039839,-935.04326431,0.00065597,15]
[340736968,1729755039849,-765.10603564,0.00065689,15]
[340736969,1729755039860,-1406.98951982,0.00065689,15]
[340736971,1729755043208,-481.83,0.00064853,2]
[340736972,1729755043219,-48047.81252464,0.00065689,15]
[340736973,1729755043228,-203.33900902,0.00065689,37]
[340736974,1729755043238,-236.79904084,0.00065689,28]
[340736975,1729755043248,-308.71287796,0.00065689,2]
[340736976,1729755043257,-500.0,0.0006569,120]
[340736977,1729755043267,-499.6960012,0.0006569,120]
[340736978,1729755043277,-6766.5686,0.0006569,2]
[340736979,1729755043287,-17982.6396,0.0006569,2]
[340736980,1729755043296,-1703.8504,0.00065697,2]
[340736981,1729755043305,-70471.8184,0.00065697,2]
[340736982,1729755043315,-1000.0,0.00065697,30]
[340736983,1729755043324,-630.12,0.00065698,120]
[340736984,1729755043334,-500.0,0.00065698,120]
[340736985,1729755043343,-500.0,0.00065698,120]
[340736986,1729755043352,-569.57956896,0.00065698,120]
[340736987,1729755043362,-768.32,0.00065698,120]
[340736988,1729755043371,-1000.0,0.00065698,120]
[340736989,1729755043382,-222.01473236,0.00065698,120]
[340736990,1729755043392,-500.0,0.00065698,120]
[340736991,1729755043402,-578.58,0.00065698,120]
[340736992,1729755043411,-500.0,0.00065698,120]
[340736993,1729755043421,-609.82,0.00065698,120]
[340736994,1729755043430,-609.82,0.00065698,120]
[340736995,1729755043439,-7317.41095094,0.00065699,2]
[340736996,1729755043450,-12618.57252226,0.00065699,2]
[340736997,1729755043461,-1979.18188074,0.00065699,2]
[340736998,1729755043473,-259.6362532,0.00065699,2]
[340736999,1729755043484,-499.89060952,0.00065699,2]
[340737000,1729755043525,-295.86000036,0.00065699,2]
[340737001,1729755043552,-2611.10939048,0.00065699,2]
[340737002,1729755043564,-2903.97220526,0.00065699,2]
[340737017,1729755045504,-64002.02207683,0.00065699,2]
[340737019,1729755045515,-431.885,0.00065699,2]
[340737023,1729755045608,-5008.17589993,0.00065699,2]
[340737024,1729755045719,-250.10479714,0.00065699,2]
[340737025,1729755045730,-12181.45042317,0.00065699,2]
[340737028,1729755053231,150.0,0.0001726,2]
[340737032,1729755181947,300.0,0.00019725,2]
[340737046,1729755464889,153.26,0.00015342,2]
[340737047,1729755602479,150.0,0.00015342,2]
[340737048,1729755602689,150.0,0.00015342,2]
[340737049,1729755602869,150.0,0.00015342,2]
[340737050,1729755603098,150.0,0.00015342,2]
[340737051,1729755603300,150.0,0.00015342,2]
[340737052,1729755603485,150.0,0.00015342,2]
[340737053,1729755603706,150.0,0.00015342,2]
[340737054,1729755603941,150.0,0.00015342,2]
[340737055,1729755604135,150.0,0.00015342,2]
[340737056,1729755604318,150.0,0.00015342,2]
[340737057,1729755604498,150.0,0.00015342,2]
[340737058,1729755604742,150.0,0.00015342,2]
[340737059,1729755604943,150.0,0.00015342,2]
[340737060,1729755605889,150.0,0.00015342,2]
[340737061,1729755606097,150.0,0.00015342,2]
[340737062,1729755606299,150.0,0.00015342,2]
[340737063,1729755606495,150.0,0.00015342,2]
[340737064,1729755606682,150.0,0.00015342,2]
[340737065,1729755606913,150.0,0.00015342,2]
[340737066,1729755607095,150.0,0.00015342,2]
[340737067,1729755607284,150.0,0.00015342,2]
[340737068,1729755947879,40893.36634649,0.00024,120]
[340737069,1729755947903,14103.63365351,0.00024,120]
[340737070,1729756000219,163.29,0.00015342,2]
[340737071,1729756045142,-150.0,0.00034548,10]
[340737072,1729756045164,-167.42,0.00050811,2]
[340737073,1729756045185,-433.0,0.00050811,120]
[340737074,1729756045206,-649.23825323,0.00058153,120]
[340737085,1729756231623,-161.76174677,0.00058153,120]
[340737086,1729756231633,-166.43,0.0006,120]
[340737087,1729756231642,-117.45825321,0.00061171,2]